bitfinex/quotes_SOLUSD_20250829
["timestamp","ask_amount","ask_price","bid_price","bid_amount"]
[1756444542349,7.6084679,216.16,216.12,20.7]
[1756444542554,4.23688118,216.16,216.12,20.7]
[1756444542754,4.23688118,216.15,216.12,20.7]
[1756444542957,4.23688118,216.15,216.12,20.0]
[1756444543464,3.03551486,216.16,216.1,20.0]
[1756444543465,4.23688118,216.13,216.1,20.0]
[1756444543666,4.23688118,216.12,216.08,20.7]
[1756444543868,26.68,216.14,216.09,0.7]
[1756444544073,7.8952704,216.13,216.09,20.7]
[1756444544373,9.14824117,216.13,216.09,20.7]
[1756444544948,9.14824117,216.13,216.11,20.0]
[1756444545154,9.14824117,216.13,216.1,0.7]
[1756444545365,9.14824117,216.13,216.11,20.0]
[1756444545573,4.91135999,216.13,216.11,20.0]
[1756444545762,4.62703685,216.13,216.11,20.0]
[1756444545947,13.912398,216.17,216.15,20.0]
[1756444546158,3.37718847,216.16,216.15,20.0]
[1756444546353,7.61406965,216.17,216.15,20.0]
[1756444546675,33.27846401,216.16,216.13,20.0]
[1756444546871,7.56249637,216.15,216.11,20.03]
[1756444547184,7.56249637,216.15,216.11,20.73]
[1756444548096,3.32561519,216.15,216.11,20.73]
[1756444548282,3.04129205,216.15,216.12,4.93688118]
[1756444548480,3.04129205,216.15,216.13,0.7]
[1756444549866,3.04129205,216.15,216.12,4.23688118]
[1756444550081,3.04129205,216.17,216.14,20.7]
[1756444550390,3.04129205,216.18,216.15,0.7]
[1756444550574,3.04129205,216.19,216.15,0.7]
[1756444550771,3.39232014,216.18,216.15,0.7]
[1756444551084,6.43361219,216.18,216.15,0.7]
[1756444551388,3.39232014,216.17,216.15,4.23688118]
[1756444551691,3.79933283,216.22,216.17,20.0]
[1756444551868,9.84371832,216.21,216.18,0.7]
[1756444552185,9.8469705,216.2,216.18,0.7]
[1756444552395,6.4491783,216.19,216.18,0.7]
[1756444552688,3.39453786,216.19,216.18,0.7]
[1756444552889,6.4491783,216.2,216.18,0.7]
[1756444553108,6.4491783,216.19,216.17,24.23688118]
[1756444553270,3.05464044,216.18,216.17,20.0]
[1756444553592,3.05464044,216.21,216.17,20.0]
[1756444553776,9.85912207,216.2,216.17,20.0]
[1756444553974,9.85912207,216.19,216.18,4.93688118]
[1756444554488,9.85912207,216.19,216.18,0.7]
[1756444555077,9.85912207,216.19,216.17,24.23688118]
[1756444555288,9.85912207,216.18,216.17,24.93688118]
[1756444556070,3.05464044,216.18,216.17,24.93688118]
[1756444556486,9.87063646,216.18,216.17,24.93688118]
[1756444556674,9.87063646,216.18,216.17,29.56286998]
[1756444556885,3.05464044,216.18,216.17,29.56286998]
[1756444557199,3.05464044,216.22,216.21,20.0]
[1756444557370,16.00436968,216.22,216.18,20.0]
[1756444557574,14.78729367,216.21,216.18,20.0]
[1756444557786,3.05464044,216.2,216.18,20.0]
[1756444557999,3.05464044,216.19,216.18,24.23688118]
[1756444558168,3.05464044,216.22,216.18,24.23688118]
[1756444558369,0.68,216.24,216.18,24.23688118]
[1756444558370,3.05464044,216.21,216.19,4.23688118]
[1756444558687,13.34071241,216.24,216.19,4.23688118]
[1756444558688,3.05464044,216.2,216.19,4.93688118]
[1756444558875,3.05464044,216.23,216.19,4.93688118]
[1756444559076,3.05464044,216.22,216.21,20.0]
[1756444559281,3.05464044,216.22,216.21,20.7]
[1756444559495,3.05464044,216.22,216.21,24.93688118]
[1756444560394,3.05464044,216.24,216.23,20.0]
[1756444560660,3.05464044,216.27,216.25,20.0]
[1756444560771,3.05464044,216.27,216.26,4.23688118]
[1756444560973,7.29152162,216.27,216.25,20.0]
[1756444561172,3.73464044,216.26,216.25,20.0]
[1756444561369,0.68,216.26,216.25,20.0]
[1756444561700,3.05464044,216.27,216.26,20.0]
[1756444562004,3.11464044,216.28,216.26,20.0]
[1756444562214,3.11464044,216.28,216.27,4.94688118]
[1756444562399,0.06,216.28,216.27,4.94688118]
[1756444562601,0.06,216.28,216.27,4.23688118]
[1756444562895,0.06,216.28,216.26,24.23688118]
[1756444563773,0.06,216.28,216.27,1.73688118]
[1756444563974,0.06,216.28,216.27,2.44688118]
[1756444564405,0.06,216.28,216.26,24.23688118]
[1756444565107,0.06,216.28,216.26,20.0]
[1756444566504,0.06,216.28,216.26,24.94688118]
[1756444566689,0.06,216.28,216.27,4.94688118]
[1756444568000,0.06,216.28,216.27,41.70688118]
[1756444568312,0.06,216.28,216.27,46.33073099]
[1756444569090,0.06,216.28,216.27,4.94688118]
[1756444569309,0.06,216.28,216.27,41.70688118]
[1756444570431,0.06,216.28,216.27,46.33073099]
[1756444571318,0.06,216.28,216.27,23.45064814]
[1756444571504,0.06,216.28,216.27,72.33073099]
[1756444573088,0.06,216.28,216.27,35.57073099]
[1756444573287,0.06,216.28,216.27,72.33073099]
[1756444575112,0.06,216.28,216.27,85.926325]
[1756444575295,0.06,216.28,216.27,86.21064814]
[1756444575698,0.06,216.28,216.27,86.67303312]
[1756444576001,0.06,216.28,216.27,86.21064814]
[1756444576619,0.06,216.28,216.27,165.21064814]
[1756444576788,0.06,216.28,216.27,128.45064814]
[1756444576992,0.06,216.28,216.27,165.21064814]
[1756444578330,0.06,216.28,216.27,128.45064814]
[1756444578623,0.06,216.28,216.27,165.21064814]
[1756444579406,0.06,216.28,216.27,165.19064814]
[1756444580023,0.06,216.28,216.27,128.45064814]
[1756444580217,0.06,216.28,216.27,165.19064814]
[1756444580411,0.06,216.28,216.27,164.906325]
[1756444581309,0.06,216.28,216.27,151.31073099]
[1756444581626,0.06,216.28,216.27,114.57073099]
[1756444581826,0.06,216.28,216.27,72.31073099]
[1756444582331,0.06,216.28,216.27,66.97688118]
[1756444582841,0.06,216.28,216.27,67.00688118]
[1756444583335,0.06,216.28,216.27,30.26688118]
[1756444583538,0.06,216.28,216.27,71.63073099]
[1756444584139,0.06,216.28,216.27,34.89073099]
[1756444584519,0.06,216.28,216.27,71.63073099]
[1756444585031,0.06,216.28,216.27,34.89073099]
[1756444585232,0.06,216.28,216.27,30.26688118]
[1756444585451,4.97688118,216.28,216.27,0.03]
[1756444585742,9.6005172,216.28,216.24,20.03]
[1756444585907,4.23688118,216.27,216.24,20.03]
[1756444586103,4.23688118,216.25,216.24,20.03]
[1756444586303,4.91688118,216.25,216.24,0.03]
[1756444586539,0.68,216.25,216.24,0.03]
[1756444586709,30.91688118,216.25,216.24,0.03]
[1756444586904,31.20120432,216.25,216.24,0.03]
[1756444587109,34.25084783,216.25,216.24,0.03]
[1756444587642,38.87512528,216.25,216.24,0.03]
[1756444588143,52.47071929,216.25,216.24,0.03]
[1756444588512,66.37795829,216.25,216.24,0.03]
[1756444589838,39.59559401,216.23,216.22,0.03]
[1756444590043,47.16644184,216.23,216.22,1e-08]
[1756444590338,0.28432314,216.14,216.11,0.03]
[1756444590545,0.71,216.13,216.11,0.03]
[1756444591032,0.71,216.12,216.11,0.03]
[1756444591210,5.33705904,216.12,216.11,0.03]
[1756444591416,9.57394022,216.12,216.11,0.03]
[1756444592122,9.85826336,216.12,216.11,0.03]
[1756444592911,26.50486236,216.12,216.11,0.03]
[1756444593112,59.00798118,216.12,216.11,0.03]
[1756444593413,63.24486236,216.12,216.11,0.03]
[1756444595334,26.50486236,216.12,216.11,0.03]
[1756444595538,63.26486236,216.12,216.11,0.03]
[1756444595757,65.12019336,216.12,216.11,0.03]
[1756444596631,60.88331218,216.12,216.11,0.03]
[1756444596827,4.90633599,216.12,216.11,24.26688118]
[1756444597045,0.71,216.17,216.11,24.26688118]
[1756444597046,4.62623759,216.16,216.11,24.26688118]
[1756444597231,5.33623759,216.16,216.12,4.23688118]
[1756444597435,26.0,216.15,216.12,4.23688118]
[1756444597634,4.23688118,216.18,216.12,4.23688118]
[1756444597838,4.23688118,216.18,216.12,4.91688118]
[1756444597839,26.0,216.15,216.12,4.91688118]
[1756444598041,26.0,216.15,216.12,4.23688118]
[1756444599137,26.0,216.15,216.11,24.26688118]
[1756444599352,26.0,216.15,216.11,24.94688118]
[1756444599854,26.0,216.16,216.13,20.0]
[1756444600450,26.71,216.16,216.13,20.0]
[1756444600666,26.0,216.16,216.13,20.0]
[1756444602056,4.23688118,216.14,216.11,20.03]
[1756444602253,4.94688118,216.13,216.11,20.03]
[1756444602439,0.28432314,216.13,216.11,20.03]
[1756444602639,0.99432314,216.13,216.11,0.03]
[1756444603231,0.99432314,216.13,216.11,20.03]
[1756444603437,5.62124604,216.13,216.11,0.03]
[1756444604439,0.71,216.12,216.11,0.03]
[1756444604650,5.62124604,216.13,216.11,0.03]
[1756444604842,9.85812722,216.13,216.11,0.03]
[1756444605255,5.33705904,216.12,216.11,0.03]
[1756444605675,4.62705904,216.12,216.11,0.03]
[1756444608457,5.33705904,216.12,216.11,0.03]
[1756444609142,0.99432314,216.15,216.11,20.03]
[1756444609354,26.99432314,216.14,216.11,20.03]
[1756444609565,30.52120432,216.14,216.11,20.03]
[1756444609865,4.52120432,216.12,216.11,0.03]
[1756444610242,5.23120432,216.12,216.11,0.03]
[1756444610443,18.82679833,216.12,216.11,0.03]
[1756444610845,20.68204333,216.12,216.11,0.03]
[1756444611162,25.30910237,216.12,216.11,0.03]
[1756444611350,88.06910237,216.12,216.11,0.03]
[1756444611555,87.35910237,216.12,216.11,0.03]
[1756444612575,0.71,216.17,216.11,0.03]
[1756444612741,26.0,216.13,216.11,0.03]
[1756444612946,1.8549,216.14,216.11,24.94688118]
[1756444613160,1.8549,216.14,216.11,20.71]
[1756444613465,8.86331677,216.15,216.11,20.71]
[1756444613867,4.23688118,216.15,216.12,20.0]
[1756444615169,9.57354888,216.14,216.11,0.03]
[1756444615354,4.23688118,216.13,216.11,0.03]
[1756444615553,4.23688118,216.12,216.11,0.03]
[1756444615750,4.94688118,216.12,216.11,0.03]
[1756444616460,4.23688118,216.12,216.11,0.03]
[1756444616963,5.23120432,216.12,216.11,0.03]
[1756444617168,23.45385737,216.12,216.11,0.03]
[1756444617355,25.30910237,216.12,216.11,0.03]
[1756444617760,28.3469011,216.12,216.11,1e-08]
[1756444618076,33.41000127,216.12,216.11,1e-08]
[1756444618775,39.59559401,216.1,216.09,1e-08]
[1756444618981,83.91459706,216.1,216.09,1e-08]
[1756444619269,89.25208433,216.1,216.09,1e-08]
[1756444620050,38.04432875,216.1,216.09,1e-08]
[1756444620274,71.62436845,216.1,216.09,1e-08]
[1756444620475,73.47969845,216.1,216.09,1e-08]
[1756444620661,87.92745403,216.1,216.09,1e-08]
[1756444621173,88.0696156,216.1,216.09,1e-08]
[1756444621756,87.3596156,216.1,216.09,1e-08]
[1756444622275,88.0696156,216.1,216.09,1e-08]
[1756444623272,91.11246755,216.1,216.09,1e-08]
[1756444624052,86.87558637,216.1,216.09,1e-08]
[1756444624253,91.11246755,216.1,216.09,1e-08]
[1756444624674,91.11497747,216.1,216.09,1e-08]
[1756444627166,94.92167981,216.1,216.09,1e-08]
[1756444628067,91.11497747,216.1,216.09,1e-08]
[1756444628552,91.11497747,216.1,216.08,1e-08]
[1756444628759,21.1621602,216.09,216.08,1e-08]
[1756444629161,39.87991715,216.07,216.06,0.03]
[1756444629383,87.7447067,216.07,216.06,0.03]
[1756444629556,88.4547067,216.07,216.06,0.03]
[1756444629757,90.3105537,216.07,216.06,0.03]
[1756444629957,94.93868347,216.07,216.06,0.03]
[1756444630167,0.28432314,216.06,216.05,0.03]
[1756444630484,0.28432314,216.06,215.95,20.0]
[1756444630485,39.59559401,216.02,215.95,20.0]
[1756444630700,4.23688118,215.97,215.95,20.0]
[1756444630979,3.04536187,215.96,215.95,20.0]
[1756444631468,3.04536187,215.96,215.95,20.7]
[1756444633461,7.28224305,215.97,215.95,20.7]
[1756444633661,3.04536187,215.96,215.95,20.0]
[1756444634274,3.04536187,215.96,215.95,20.7]
[1756444635078,7.28224305,215.97,215.95,20.7]
[1756444635277,7.28224305,215.97,215.96,0.7]
[1756444635891,3.04536187,215.97,215.96,0.7]
[1756444636372,7.28224305,215.97,215.96,0.7]
[1756444637180,3.04536187,215.97,215.96,0.7]
[1756444637385,7.28224305,215.97,215.96,0.7]
[1756444638087,3.04536187,215.97,215.96,0.7]
[1756444639194,40.99688118,215.98,215.96,0.7]
[1756444639692,45.62693951,215.98,215.97,0.7]
[1756444639869,48.68378189,215.98,215.97,20.0]
[1756444640072,44.05372356,215.98,215.97,20.0]
[1756444640270,49.67810503,215.98,215.97,20.0]
[1756444640568,0.28432314,215.97,215.95,20.03]
[1756444640768,7.5780467,215.97,215.95,20.03]
[1756444641181,55.58679833,215.96,215.95,0.03]
[1756444641385,58.64364071,215.96,215.95,0.03]
[1756444641570,72.56830871,215.96,215.95,0.03]
[1756444641770,77.19879583,215.96,215.95,0.03]
[1756444642480,77.19879583,215.96,215.92,0.03]
[1756444642481,39.59559401,215.93,215.92,0.03]
[1756444642679,26.0,215.85,215.8,20.0]
[1756444642878,30.23688118,215.81,215.77,20.0]
[1756444643078,4.23688118,215.78,215.77,20.7]
[1756444643694,26.0,215.81,215.75,20.0]
[1756444643876,4.23688118,215.79,215.78,20.0]
[1756444644076,4.23688118,215.79,215.75,20.0]
[1756444644277,26.0,215.82,215.78,20.0]
[1756444644582,0.28432314,215.81,215.8,20.0]
[1756444644784,36.76,215.81,215.8,20.0]
[1756444644984,36.76,215.81,215.76,0.7]
[1756444644985,63.04432314,215.81,215.76,0.7]
[1756444645182,0.28432314,215.8,215.77,0.7]
[1756444645383,0.28432314,215.83,215.79,20.0]
[1756444645585,36.76,215.81,215.8,0.7]
[1756444645791,36.76,215.81,215.79,20.0]
[1756444645792,0.28432314,215.8,215.79,20.0]
[1756444645993,0.28432314,215.8,215.77,20.0]
[1756444646379,0.28432314,215.8,215.77,20.7]
[1756444646598,0.14216157,215.8,215.77,20.7]
[1756444647176,0.28432314,215.82,215.78,0.7]
[1756444647393,0.28432314,215.82,215.78,4.93688118]
[1756444647584,0.62,215.86,215.77,20.0]
[1756444647585,18.22779708,215.88,215.81,24.23688118]
[1756444647784,18.56397988,215.85,215.81,24.23688118]
[1756444647990,36.76,215.84,215.83,20.0]
[1756444648685,36.76,215.84,215.81,20.7]
[1756444649016,36.76,215.84,215.83,24.23688118]
[1756444649308,36.78,215.85,215.83,24.93688118]
[1756444649481,36.78,215.85,215.83,20.7]
[1756444649677,36.78,215.84,215.83,20.7]
[1756444650406,54.89679833,215.84,215.79,20.0]
[1756444650589,0.28432314,215.79,215.73,20.0]
[1756444650788,36.78,215.78,215.73,24.93688118]
[1756444650996,36.78,215.78,215.74,4.93688118]
[1756444651194,36.78,215.78,215.75,0.7]
[1756444651390,36.78,215.78,215.76,20.0]
[1756444652394,41.41435743,215.78,215.76,20.0]
[1756444652791,36.78,215.78,215.76,20.0]
[1756444652994,11.58265381,215.84,215.76,20.0]
[1756444652995,0.62,215.86,215.77,0.7]
[1756444653205,71.64972806,215.85,215.8,4.23688118]
[1756444653404,71.64972806,215.85,215.81,20.0]
[1756444653617,4.23688118,215.83,215.81,20.0]
[1756444653807,41.01688118,215.82,215.81,20.0]
[1756444654287,4.23688118,215.84,215.81,20.7]
[1756444654484,36.78,215.84,215.83,20.0]
[1756444654887,36.78,215.85,215.83,20.7]
[1756444655111,36.78,215.85,215.83,20.0]
[1756444655287,4.85688118,215.84,215.81,20.0]
[1756444655491,4.23688118,215.83,215.79,20.0]
[1756444655801,26.0,215.79,215.75,20.0]
[1756444656106,62.78,215.79,215.75,20.7]
[1756444656414,71.65118547,215.79,215.75,20.7]
[1756444656709,4.23688118,215.78,215.75,20.0]
[1756444657008,4.23688118,215.77,215.73,20.0]
[1756444657208,36.78,215.76,215.73,20.0]
[1756444657392,36.78,215.76,215.71,20.0]
[1756444657804,67.01688118,215.75,215.71,20.0]
[1756444658107,43.83247519,215.72,215.63,0.7]
[1756444658410,18.51663064,215.67,215.63,20.0]
[1756444658718,41.09688118,215.66,215.63,20.0]
[1756444659298,26.0,215.63,215.58,0.7]
[1756444659507,26.0,215.63,215.6,4.23688118]
[1756444659716,26.0,215.63,215.55,0.1]
[1756444659717,0.14216157,215.65,215.63,20.0]
[1756444659894,36.84,215.64,215.63,20.0]
[1756444660087,36.86,215.64,215.63,20.0]
[1756444660288,36.86,215.64,215.61,20.0]
[1756444660488,36.86,215.64,215.63,20.0]
[1756444660729,4.23688118,215.65,215.63,20.0]
[1756444660921,36.86,215.64,215.63,20.0]
[1756444661228,41.09688118,215.64,215.61,20.0]
[1756444661415,6.72274332,215.63,215.61,20.0]
[1756444662416,36.86,215.62,215.61,20.0]
[1756444662601,36.84,215.62,215.61,20.0]
[1756444662801,43.56274332,215.62,215.61,20.0]
[1756444662994,36.84,215.62,215.61,20.0]
[1756444663420,36.84,215.62,215.61,20.7]
[1756444663602,26.0,215.66,215.63,20.0]
[1756444663804,36.84,215.65,215.63,20.0]
[1756444664011,43.56274332,215.65,215.63,20.0]
[1756444664908,48.19990876,215.65,215.63,20.0]
[1756444665099,36.84,215.65,215.63,20.0]
[1756444665299,6.72274332,215.64,215.63,20.0]
[1756444665914,36.84,215.65,215.63,20.0]
[1756444666120,6.72274332,215.64,215.63,20.0]
[1756444666307,43.54274332,215.64,215.63,20.0]
[1756444668402,6.72274332,215.65,215.63,20.0]
[1756444668604,6.72274332,215.64,215.63,20.0]
[1756444668907,36.8,215.65,215.63,20.0]
[1756444669109,6.72274332,215.66,215.65,20.0]
[1756444669725,43.56274332,215.66,215.65,20.0]
[1756444669925,13.943436,215.72,215.65,20.0]
[1756444669926,0.62,215.75,215.71,20.0]
[1756444670125,6.72274332,215.72,215.69,20.0]
[1756444670303,6.72274332,215.7,215.69,20.0]
[1756444670706,43.72274332,215.7,215.69,20.0]
[1756444672226,18.57553536,215.77,215.74,20.0]
[1756444672537,6.72274332,215.75,215.74,20.7]
[1756444672830,6.72274332,215.75,215.74,20.0]
[1756444673332,43.74274332,215.75,215.74,20.7]
[1756444673699,6.72274332,215.77,215.76,20.0]
[1756444674030,37.02,215.77,215.76,20.7]
[1756444674335,43.74274332,215.77,215.76,20.7]
[1756444674629,37.02,215.79,215.78,20.0]
[1756444674941,43.74274332,215.79,215.78,20.0]
[1756444675431,6.72274332,215.79,215.78,20.7]
[1756444675748,37.02,215.8,215.78,20.7]
[1756444675911,37.02,215.8,215.78,20.0]
[1756444676240,37.02,215.8,215.79,0.7]
[1756444676409,6.72274332,215.81,215.79,0.7]
[1756444676608,43.72274332,215.8,215.78,20.0]
[1756444676812,43.72274332,215.8,215.78,20.7]
[1756444677041,43.70274332,215.83,215.81,20.0]
[1756444677424,6.72274332,215.82,215.81,20.0]
[1756444677636,10.36897693,215.82,215.81,20.0]
[1756444678718,10.37023807,215.82,215.79,20.0]
[1756444678920,6.72274332,215.8,215.79,20.0]
[1756444679327,37.02,215.81,215.79,20.7]
[1756444679828,37.02,215.83,215.82,20.0]
[1756444680032,47.10797727,215.83,215.82,20.0]
[1756444680234,5.68310017,215.92,215.82,20.67]
[1756444680414,43.41630111,215.89,215.86,20.0]
[1756444680616,30.63284688,215.85,215.82,20.0]
[1756444680839,0.28432314,215.82,215.79,20.0]
[1756444681039,6.72274332,215.8,215.79,20.0]
[1756444681730,6.72274332,215.8,215.79,20.67]
[1756444682651,37.02,215.81,215.79,20.0]
[1756444682852,6.72274332,215.83,215.81,20.0]
[1756444683054,3.36886151,215.82,215.81,20.0]
[1756444683354,37.02,215.84,215.83,20.0]
[1756444683524,40.39192763,215.84,215.83,20.67]
[1756444683722,3.37192763,215.84,215.83,20.67]
[1756444683917,14.03378345,215.84,215.79,20.0]
[1756444684235,6.72274332,215.8,215.79,20.0]
[1756444684540,47.17467095,215.8,215.79,20.0]
[1756444684740,37.08,215.8,215.79,20.0]
[1756444684929,48.43666361,215.8,215.79,20.67]
[1756444685118,51.80734181,215.8,215.79,20.0]
[1756444685319,54.84387548,215.8,215.79,20.0]
[1756444685542,54.84387548,215.8,215.77,20.0]
[1756444685756,6.72274332,215.78,215.75,20.0]
[1756444685928,6.72274332,215.76,215.73,20.0]
[1756444686130,6.72274332,215.74,215.71,20.0]
[1756444686439,6.72274332,215.72,215.71,20.0]
[1756444686647,37.08,215.73,215.71,20.67]
[1756444687028,37.08,215.73,215.72,0.67]
[1756444687230,3.37554091,215.73,215.72,0.67]
[1756444687415,6.4158242,215.73,215.72,0.67]
[1756444687620,43.80274332,215.77,215.76,20.0]
[1756444687821,6.41951641,215.77,215.76,20.67]
[1756444688036,37.08,215.8,215.78,20.0]
[1756444688241,13.14299529,215.79,215.78,20.0]
[1756444688541,6.42025197,215.79,215.78,20.0]
[1756444688846,14.39823372,215.79,215.78,20.0]
[1756444689064,3.04135537,215.79,215.78,20.0]
[1756444689353,14.39823372,215.79,215.78,20.0]
[1756444689522,14.68255686,215.79,215.78,20.0]
[1756444690766,14.39823372,215.79,215.78,20.0]
[1756444690951,51.51823372,215.79,215.78,20.0]
[1756444691118,46.88409869,215.79,215.78,20.0]
[1756444691542,46.88409869,215.79,215.78,20.67]
[1756444692049,51.51823372,215.79,215.78,20.0]
[1756444692656,46.88409869,215.79,215.78,20.0]
[1756444693352,46.88409869,215.79,215.78,20.67]
[1756444693353,51.51823372,215.79,215.78,20.67]
[1756444693539,46.88409869,215.79,215.78,20.67]
[1756444693738,40.16135537,215.79,215.78,20.67]
[1756444694148,43.82274332,215.81,215.78,20.7]
[1756444694457,43.82274332,215.81,215.79,0.67]
[1756444694640,43.82274332,215.81,215.8,20.0]
[1756444694843,46.86280827,215.81,215.8,20.0]
[1756444695038,46.86280827,215.81,215.8,20.67]
[1756444695039,51.49651384,215.81,215.8,20.67]
[1756444695243,40.14006495,215.81,215.8,20.67]
[1756444696042,49.032707,215.81,215.8,20.0]
[1756444696259,44.77377052,215.81,215.8,20.67]
[1756444696560,40.14006495,215.81,215.8,20.67]
[1756444696751,40.14006495,215.81,215.78,0.03]
[1756444696752,13.59559401,215.8,215.78,20.03]
[1756444697058,62.85305361,215.79,215.78,0.03]
[1756444697264,63.47305361,215.79,215.78,0.03]
[1756444698162,62.85305361,215.79,215.78,0.03]
[1756444699463,65.30889124,215.79,215.78,0.03]
[1756444700164,4.63392902,215.8,215.78,20.7]
[1756444700363,7.67197409,215.8,215.79,0.67]
[1756444700543,3.03804507,215.8,215.79,0.67]
[1756444701042,7.6717797,215.81,215.8,20.0]
[1756444701255,7.6717797,215.81,215.8,20.67]
[1756444701656,7.67217958,215.81,215.8,20.67]
[1756444702451,4.63373463,215.81,215.8,20.67]
[1756444702653,11.34850874,215.81,215.8,20.0]
[1756444702951,14.38572412,215.81,215.78,0.03]
[1756444703141,6.71477411,215.79,215.78,0.03]
[1756444703343,9.75198949,215.79,215.78,0.03]
[1756444703965,3.03721538,215.79,215.78,0.03]
[1756444704168,10.03631263,215.79,215.78,0.03]
[1756444704343,39.87991715,215.76,215.75,0.03]
[1756444704660,91.42668602,215.76,215.75,0.03]
[1756444704873,6.71477411,215.74,215.73,20.0]
[1756444705050,57.75469126,215.74,215.73,20.0]
[1756444705250,0.28432314,215.73,215.71,20.0]
[1756444705443,43.87477411,215.72,215.71,20.0]
[1756444706574,40.19761114,215.72,215.71,20.67]
[1756444706740,37.16,215.72,215.71,20.67]
[1756444706945,3.0377106,215.72,215.71,20.67]
[1756444707661,3.0377106,215.72,215.71,20.0]
[1756444707975,3.0377106,215.72,215.71,20.67]
[1756444708858,44.7927048,215.75,215.74,20.0]
[1756444709052,51.50747891,215.75,215.74,20.67]
[1756444709971,3.0377106,215.75,215.74,20.67]
[1756444710144,11.58370651,215.83,215.78,20.0]
[1756444710145,40.16144623,215.8,215.78,20.0]
[1756444710344,44.79558126,215.79,215.78,20.0]
[1756444711358,51.51035537,215.79,215.78,20.0]
[1756444711858,51.51035537,215.79,215.78,20.69]
[1756444712460,51.51035537,215.79,215.78,20.0]
[1756444712983,51.51035537,215.79,215.78,20.03]
[1756444715665,46.87622034,215.79,215.78,20.72]
[1756444715861,51.51035537,215.79,215.78,20.72]
[1756444716178,13.87991715,215.78,215.75,0.03]
[1756444716375,6.99909725,215.76,215.75,0.03]
[1756444716553,10.04054348,215.76,215.75,0.03]
[1756444716748,9.75622034,215.76,215.75,20.03]
[1756444716969,46.83622034,215.76,215.75,20.03]
[1756444717459,51.47099972,215.76,215.75,20.03]
[1756444717957,3.04144623,215.76,215.75,20.72]
[1756444718162,46.85622034,215.77,215.75,20.72]
[1756444718375,3.04144623,215.76,215.75,20.03]
[1756444718673,9.75622034,215.76,215.75,20.03]
[1756444719056,3.04144623,215.76,215.75,20.72]
[1756444719251,9.75622034,215.76,215.75,20.72]
[1756444719452,14.39099972,215.76,215.75,20.72]
[1756444720166,14.39099972,215.76,215.75,20.03]
[1756444720955,15.29532286,215.76,215.75,0.03]
[1756444721156,19.107813,215.76,215.75,0.03]
[1756444721364,44.73622561,215.76,215.75,20.03]
[1756444721564,48.99832674,215.76,215.75,20.03]
[1756444722255,3.04144623,215.76,215.75,20.03]
[1756444722462,4.26210113,215.76,215.75,20.72]
[1756444722659,7.30354736,215.76,215.75,20.72]
[1756444723079,3.04144623,215.76,215.75,20.72]
[1756444723299,7.30354736,215.76,215.75,20.72]
[1756444723653,7.30354736,215.76,215.75,20.03]
[1756444723857,7.30354736,215.76,215.75,20.72]
[1756444724279,3.04144623,215.76,215.75,20.72]
[1756444724453,4.26210113,215.76,215.75,20.72]
[1756444724975,7.30354736,215.77,215.75,20.72]
[1756444725659,4.26210113,215.76,215.75,20.72]
[1756444725981,7.30354736,215.76,215.75,20.03]
[1756444726479,7.30354736,215.76,215.75,20.72]
[1756444727181,3.04144623,215.77,215.75,24.98210113]
[1756444727383,3.04144623,215.8,215.79,20.0]
[1756444727679,7.30354736,215.8,215.79,20.69]
[1756444728473,3.04144623,215.8,215.79,20.69]